[Event "Lidkoping Open 2019"]
[Site "Lidkoping"]
[Date "2019.08.25"]
[Round "7.11"]
[White "Nyberg, Arne"]
[Black "Ask, Josef"]
[Result "1/2-1/2"]
[ECO "B16"]
[WhiteElo "1967"]
[BlackElo "2136"]
[Annotator "ChessBase"]
[PlyCount "106"]
[EventDate "2019.08.19"]
[EventType "swiss"]
[EventCountry "SWE"]
[SourceTitle "playchess.com"]
[Source "ChessBase"]
[SourceQuality "1"]
[TimeControl "2700+10"]

1. e4 {[%emt 0:00:00]} c6 {[%emt 0:00:00]} 2. d4 {[%emt 0:00:00]} d5 {[%emt 0:00:02]} 3. Nc3 {[%emt 0:00:00]} dxe4 {[%emt 0:00:04]} 4. Nxe4 {[%emt 0:00:01]} Nf6 {[%emt 0:00:09]} 5. Nxf6+ {[%emt 0:00:15]} gxf6 {[%emt 0:00:06]} 6. Bc4 {[%emt 0:00:34]} Bf5 {[%emt 0:00:16]} 7. Ne2 {[%emt 0:00:47]} e6 {[%emt 0:00:27]} 8. Ng3 {[%emt 0:00:17]} Bg6 {[%emt 0:00:07]} 9. c3 {[%emt 0:00:36]} h5 {[%emt 0:00:37]} 10. h4 {[%emt 0:00:08]} Bd6 {[%emt 0:00:13]} 11. Qf3 {[%emt 0:00:51]} Nd7 {[%emt 0:00:16]} 12. Ne4 {[%emt 0:03:41]} Bxe4 {[%emt 0:00:26]} 13. Qxe4 {[%emt 0:00:03]} Qc7 {[%emt 0:00:22]} 14. Qe2 {[%emt 0:01:38]} O-O-O {[%emt 0:00:20]} 15. Be3 {[%emt 0:00:24]} Rdg8 {[%emt 0:00:24]} 16. g3 {[%emt 0:00:16]} Rg4 {[%emt 0:00:17]} 17. O-O-O {[%emt 0:00:13]} f5 {[%emt 0:00:33]} 18. Kb1 {[%emt 0:04:14]} Rhg8 {[%emt 0:00:45]} 19. Qc2 {[%emt 0:00:35]} f4 {[%emt 0:01:33]} 20. gxf4 {[%emt 0:00:05]} Bxf4 {[%emt 0:00:07]} 21. Be2 {[%emt 0:02:36]} Rg2 {[%emt 0:00:18]} 22. Bf3 {[%emt 0:00:08]} R2g7 {[%emt 0:00:40]} 23. Bxh5 {[%emt 0:01:25]} Nb6 {[%emt 0:00:24]} 24. Bf3 {[%emt 0:00:37]} Nc4 {[%emt 0:00:15]} 25. Qe2 {[%emt 0:01:04]} Nxe3 {[%emt 0:00:44]} 26. fxe3 {[%emt 0:00:04]} Bh6 {[%emt 0:00:01]} 27. Qf2 {[%emt 0:00:38]} Qg3 {[%emt 0:00:32]} 28. Qxg3 {[%emt 0:01:05]} Rxg3 {[%emt 0:00:01]} 29. Bh5 {[%emt 0:00:02]} R8g7 {[%emt 0:00:46]} 30. e4 {[%emt 0:00:29]} Re3 {[%emt 0:00:47]} 31. Rde1 {[%emt 0:00:41]} Kd7 {[%emt 0:00:40]} 32. e5 {[%emt 0:00:55]} Ke7 {[%emt 0:00:09]} 33. Rxe3 {[%emt 0:00:14]} Bxe3 {[%emt 0:00:01]} 34. Rf1 {[%emt 0:00:02]} Rh7 {[%emt 0:00:23]} 35. Rf3 {[%emt 0:00:13]} Bd2 {[%emt 0:00:38]} 36. Kc2 {[%emt 0:00:04]} Be1 {[%emt 0:00:06]} 37. Rf1 {[%emt 0:00:48]} Bxh4 {[%emt 0:00:20]} 38. Bf3 {[%emt 0:00:02]} Bg5 {[%emt 0:00:11]} 39. Rh1 {[%emt 0:00:06]} Bh4 {[%emt 0:01:07]} 40. Kd3 {[%emt 0:00:31]} f6 {[%emt 0:00:41]} 41. exf6+ {[%emt 0:00:04]} Kxf6 {[%emt 0:00:03]} 42. a4 {[%emt 0:00:22]} Kg5 {[%emt 0:00:34]} 43. b4 {[%emt 0:01:09]} Kf4 {[%emt 0:00:51]} 44. Bd1 {[%emt 0:01:18]} Kg3 {[%emt 0:00:12]} 45. Bb3 {[%emt 0:00:20]} Re7 {[%emt 0:00:06]} 46. Re1 {[%emt 0:00:12]} e5 {[%emt 0:00:29]} 47. Rxe5 {[%emt 0:00:11]} Rxe5 {[%emt 0:01:13]} 48. dxe5 {[%emt 0:00:02]} Kf4 {[%emt 0:00:02]} 49. e6 {[%emt 0:00:01]} Ke5 {[%emt 0:00:02]} 50. a5 {[%emt 0:01:07]} a6 {[%emt 0:00:09]} 51. Bc4 {[%emt 0:00:09]} Be7 {[%emt 0:00:30]} 52. Bb3 {[%emt 0:00:07]} Bf8 {[%emt 0:00:17]} 53. Ba2 {[%emt 0:00:23]} Be7 {[%emt 0:33:34]} 1/2-1/2

[Event "Lidkoping Open 2019"]
[Site "Lidkoping"]
[Date "2019.08.25"]
[Round "7.12"]
[White "Pavlic, Oliver"]
[Black "Lind, Jan-Olov"]
[Result "0-1"]
[ECO "E91"]
[WhiteElo "1856"]
[BlackElo "2164"]
[Annotator "NA"]
[PlyCount "98"]
[EventDate "2019.08.19"]
[EventType "swiss"]
[EventCountry "SWE"]
[SourceTitle "playchess.com"]
[Source "ChessBase"]
[SourceQuality "1"]
[TimeControl "2700+10"]

1. d4 {[%emt 0:00:00]} g6 {[%emt 0:00:00]} 2. c4 {[%emt 0:00:00]} Bg7 {[%emt 0:00:00]} 3. e4 {[%emt 0:00:00]} c5 {[%emt 0:01:08]} 4. d5 {[%emt 0:01:20]} d6 {[%emt 0:00:04]} 5. Nc3 {[%emt 0:00:43]} Nf6 {[%emt 0:00:16]} 6. Nf3 {[%emt 0:01:15]} O-O {[%emt 0:00:37]} 7. Be2 {[%emt 0:00:33]} e6 {[%emt 0:00:21]} 8. h3 {[%emt 0:02:03]} exd5 {[%emt 0:00:18]} 9. cxd5 {[%emt 0:00:03]} Re8 {[%emt 0:00:54]} 10. Nd2 {[%emt 0:00:48]} Na6 {[%emt 0:05:27]} 11. O-O {[%emt 0:01:06]} Nc7 {[%emt 0:00:12]} 12. a4 {[%emt 0:00:28]} Na6 {[%emt 0:01:14]} 13. Re1 {[%emt 0:06:03]} Nb4 {[%emt 0:00:17]} 14. Bf1 {[%emt 0:00:49]} Nh5 {[%emt 0:03:12]} 15. Na2 {[%emt 0:04:40]} Nxa2 {[%emt 0:10:04]} 16. Rxa2 {[%emt 0:00:02]} Nf6 {[%emt 0:05:45]} 17. Ra3 {[%emt 0:05:46]} a6 {[%emt 0:03:13]} 18. Rae3 {[%emt 0:01:43]} Bh6 {[%emt 0:01:16]} 19. Ra3 {[%emt 0:06:45]} Bd7 {[%emt 0:00:55]} 20. f3 {[%emt 0:01:03]} b5 {[%emt 0:01:04]} 21. axb5 {[%emt 0:00:35]} axb5 {[%emt 0:00:03]} 22. Rxa8 {[%emt 0:00:02]} Qxa8 {[%emt 0:00:01]} 23. Nb1 {[%emt 0:00:01]} Bg7 {[%emt 0:01:41]} 24. Na3 {[%emt 0:00:12]} Qb7 {[%emt 0:00:57]} 25. Bf4 {[%emt 0:00:49]} Qb6 {[%emt 0:00:21]} 26. Bg3 {[%emt 0:01:04]} Nh5 {[%emt 0:00:21]} 27. Bf2 {[%emt 0:00:34]} Bxb2 {[%emt 0:01:13]} 28. Nxb5 {[%emt 0:01:56]} Bxb5 {[%emt 0:00:22]} 29. Qb3 {[%emt 0:00:02]} Bd4 {[%emt 0:01:24]} 30. Bxd4 {[%emt 0:00:47]} cxd4 {[%emt 0:00:05]} 31. Qxb5 {[%emt 0:00:03]} Qxb5 {[%emt 0:00:22]} 32. Bxb5 {[%emt 0:00:01]} Rb8 {[%emt 0:00:02]} 33. Bf1 {[%emt 0:00:52]} Rb3 {[%emt 0:01:30]} 34. Rd1 {[%emt 0:00:34]} Rb4 {[%emt 0:00:06]} 35. Rc1 {[%emt 0:01:15]} Kg7 {[%emt 0:01:55]} 36. Rc4 {[%emt 0:01:59]} Rxc4 {[%emt 0:00:05]} 37. Bxc4 {[%emt 0:00:02]} Kf6 {[%emt 0:00:03]} 38. Kf2 {[%emt 0:00:13]} Ke5 {[%emt 0:00:11]} 39. g3 {[%emt 0:00:29]} g5 {[%emt 0:00:11]} 40. Bd3 {[%emt 0:00:12]} h6 {[%emt 0:00:08]} 41. Bc4 {[%emt 0:00:09]} Nf6 {[%emt 0:00:04]} 42. Bd3 {[%emt 0:00:10]} Nd7 {[%emt 0:00:24]} 43. Ke2 {[%emt 0:00:39]} h5 {[%emt 0:00:13]} 44. Bb5 {[%emt 0:00:15]} Nf6 {[%emt 0:00:08]} 45. Bd3 {[%emt 0:00:05]} h4 {[%emt 0:00:06]} 46. g4 {[%emt 0:00:53]} Kf4 {[%emt 0:00:09]} 47. Kf2 {[%emt 0:00:06]} Nd7 {[%emt 0:00:06]} 48. Bb5 {[%emt 0:01:33]} Ne5 {[%emt 0:00:07]} 49. Be2 {[%emt 0:00:13]} f6 {[%emt 0:00:06]} 0-1

[Event "Lidkoping Open 2019"]
[Site "Lidkoping"]
[Date "2019.08.25"]
[Round "7.13"]
[White "Bergre, Joachim"]
[Black "Andersen, Dag"]
[Result "1/2-1/2"]
[ECO "E17"]
[WhiteElo "1928"]
[BlackElo "1873"]
[Annotator "NA"]
[PlyCount "53"]
[EventDate "2019.08.19"]
[EventType "swiss"]
[EventCountry "SWE"]
[SourceTitle "playchess.com"]
[Source "ChessBase"]
[SourceQuality "1"]
[TimeControl "2700+10"]

1. Nf3 {[%emt 0:01:30]} d5 {[%emt 0:00:00]} 2. d4 {[%emt 0:00:41]} Nf6 {[%emt 0:00:07]} 3. g3 {[%emt 0:00:19]} e6 {[%emt 0:00:22]} 4. Bg2 {[%emt 0:00:11]} Be7 {[%emt 0:00:19]} 5. O-O {[%emt 0:00:50]} O-O {[%emt 0:00:06]} 6. c4 {[%emt 0:01:03]} b6 {[%emt 0:01:05]} 7. b3 {[%emt 0:00:59]} Bb7 {[%emt 0:00:05]} 8. Bb2 {[%emt 0:00:29]} Nbd7 {[%emt 0:00:12]} 9. Nbd2 {[%emt 0:03:07]} c5 {[%emt 0:01:31]} 10. Rc1 {[%emt 0:02:03]} Rc8 {[%emt 0:00:26]} 11. Re1 {[%emt 0:02:12]} Re8 {[%emt 0:02:23]} 12. e3 {[%emt 0:05:08]} Bf8 {[%emt 0:02:34]} 13. Ne5 {[%emt 0:00:52]} cxd4 {[%emt 0:00:39]} 14. exd4 {[%emt 0:00:19]} Nxe5 {[%emt 0:01:05]} 15. dxe5 {[%emt 0:00:08]} Nd7 {[%emt 0:00:28]} 16. cxd5 {[%emt 0:00:59]} Rxc1 {[%emt 0:01:04]} 17. Qxc1 {[%emt 0:00:08]} Bxd5 {[%emt 0:00:19]} 18. Nc4 {[%emt 0:02:42]} Bxg2 {[%emt 0:01:11]} 19. Kxg2 {[%emt 0:00:01]} Qa8+ {[%emt 0:01:10]} 20. f3 {[%emt 0:02:52]} Rc8 {[%emt 0:01:06]} 21. Qd2 {[%emt 0:01:01]} Nc5 {[%emt 0:01:48]} 22. Rd1 {[%emt 0:01:49]} h6 {[%emt 0:02:20]} 23. Qd4 {[%emt 0:01:59]} Rc7 {[%emt 0:06:48]} 24. Qd8 {[%emt 0:06:08]} Rc8 {[%emt 0:00:43]} 25. Qd4 {[%emt 0:01:09]} Rc7 {[%emt 0:00:06]} 26. Qd8 {[%emt 0:00:25]} Rc8 {[%emt 0:00:06]} 27. Qd4 {[%emt 0:00:08]} 1/2-1/2

[Event "Lidkoping Open 2019"]
[Site "Lidkoping"]
[Date "2019.08.25"]
[Round "7.14"]
[White "Olofsson, Hans-Erik"]
[Black "Nordstrom, Felix"]
[Result "1-0"]
[ECO "B41"]
[WhiteElo "1898"]
[BlackElo "2060"]
[Annotator "NA"]
[PlyCount "115"]
[EventDate "2019.08.19"]
[EventType "swiss"]
[EventCountry "SWE"]
[SourceTitle "playchess.com"]
[Source "ChessBase"]
[SourceQuality "1"]
[TimeControl "2700+10"]

1. e4 {[%emt 0:00:00]} c5 {[%emt 0:00:14]} 2. Nf3 {[%emt 0:00:00]} e6 {[%emt 0:00:37]} 3. d4 {[%emt 0:00:06]} cxd4 {[%emt 0:00:07]} 4. Nxd4 {[%emt 0:00:09]} a6 {[%emt 0:00:30]} 5. c4 {[%emt 0:02:26]} Nf6 {[%emt 0:00:11]} 6. f3 {[%emt 0:00:19]} Nc6 {[%emt 0:01:36]} 7. Nc3 {[%emt 0:02:39]} Bb4 {[%emt 0:03:42]} 8. a3 {[%emt 0:04:48]} Bxc3+ {[%emt 0:00:23]} 9. bxc3 {[%emt 0:00:08]} Qc7 {[%emt 0:04:19]} 10. Be2 {[%emt 0:07:23]} d6 {[%emt 0:01:56]} 11. Be3 {[%emt 0:02:36]} O-O {[%emt 0:01:18]} 12. O-O {[%emt 0:00:33]} Bd7 {[%emt 0:05:57]} 13. Bg5 {[%emt 0:01:40]} Ne8 {[%emt 0:01:43]} 14. Bh4 {[%emt 0:03:02]} f6 {[%emt 0:03:05]} 15. Kh1 {[%emt 0:03:44]} Ne5 {[%emt 0:07:12]} 16. Qb3 {[%emt 0:00:31]} Rc8 {[%emt 0:01:09]} 17. Rfc1 {[%emt 0:06:19]} Nxc4 {[%emt 0:01:53]} 18. Bxc4 {[%emt 0:00:43]} Qxc4 {[%emt 0:00:02]} 19. Qxb7 {[%emt 0:00:12]} Rf7 {[%emt 0:01:53]} 20. Qb4 {[%emt 0:01:23]} e5 {[%emt 0:02:17]} 21. Qxc4 {[%emt 0:05:12]} Rxc4 {[%emt 0:00:03]} 22. Nb3 {[%emt 0:00:35]} Be6 {[%emt 0:01:58]} 23. Nd2 {[%emt 0:00:29]} Rc6 {[%emt 0:00:19]} 24. Nf1 {[%emt 0:00:16]} Rfc7 {[%emt 0:00:57]} 25. Be1 {[%emt 0:00:05]} d5 {[%emt 0:01:07]} 26. exd5 {[%emt 0:00:10]} Bxd5 {[%emt 0:00:01]} 27. Ne3 {[%emt 0:00:04]} Be6 {[%emt 0:00:18]} 28. a4 {[%emt 0:00:15]} Kf7 {[%emt 0:00:30]} 29. Kg1 {[%emt 0:00:03]} Nd6 {[%emt 0:00:20]} 30. Ra3 {[%emt 0:01:04]} Nb7 {[%emt 0:01:02]} 31. Kf2 {[%emt 0:01:11]} Nc5 {[%emt 0:00:20]} 32. Ke2 {[%emt 0:00:55]} f5 {[%emt 0:00:57]} 33. Rb1 {[%emt 0:01:00]} Kf6 {[%emt 0:01:26]} 34. Bd2 {[%emt 0:00:01]} Rb7 {[%emt 0:00:28]} 35. Rxb7 Nxb7 {[%emt 0:00:01]} 36. Ra1 {[%emt 0:00:19]} Nc5 {[%emt 0:00:11]} 37. Ra3 {[%emt 0:00:20]} Bb3 {[%emt 0:00:11]} 38. a5 {[%emt 0:00:05]} Be6 {[%emt 0:00:07]} 39. c4 {[%emt 0:00:05]} h5 {[%emt 0:00:43]} 40. Rc3 {[%emt 0:00:09]} Nb7 {[%emt 0:00:12]} 41. Rb3 {[%emt 0:00:14]} Nc5 {[%emt 0:00:18]} 42. Rb6 {[%emt 0:00:04]} Rxb6 {[%emt 0:00:09]} 43. axb6 {[%emt 0:00:01]} f4 {[%emt 0:00:01]} 44. Nd5+ {[%emt 0:00:09]} Bxd5 {[%emt 0:00:06]} 45. cxd5 {[%emt 0:00:01]} g5 {[%emt 0:00:16]} 46. Bb4 {[%emt 0:00:02]} Nb7 {[%emt 0:00:20]} 47. Kd3 {[%emt 0:00:11]} a5 {[%emt 0:00:00]} 48. Ba3 {[%emt 0:00:04]} g4 {[%emt 0:00:05]} 49. Kc4 {[%emt 0:00:04]} h4 {[%emt 0:00:17]} 50. fxg4 {[%emt 0:00:07]} h3 {[%emt 0:00:01]} 51. gxh3 {[%emt 0:00:06]} f3 {[%emt 0:00:01]} 52. Kd3 {[%emt 0:00:09]} e4+ {[%emt 0:00:05]} 53. Ke3 {[%emt 0:00:02]} Ke5 {[%emt 0:00:04]} 54. h4 {[%emt 0:00:04]} Kxd5 {[%emt 0:00:05]} 55. h5 {[%emt 0:00:01]} Ke6 {[%emt 0:00:04]} 56. h6 {[%emt 0:00:06]} Kf6 {[%emt 0:00:05]} 57. g5+ {[%emt 0:00:06]} Kg6 {[%emt 0:00:02]} 58. h4 {[%emt 0:00:01]} 1-0

[Event "Lidkoping Open 2019"]
[Site "Lidkoping"]
[Date "2019.08.25"]
[Round "7.15"]
[White "Wiklund, Robert"]
[Black "Bengtsson, Siv"]
[Result "1/2-1/2"]
[ECO "B33"]
[WhiteElo "1785"]
[BlackElo "2074"]
[Annotator "NA"]
[PlyCount "76"]
[EventDate "2019.08.19"]
[EventType "swiss"]
[EventCountry "SWE"]
[SourceTitle "playchess.com"]
[Source "ChessBase"]
[SourceQuality "1"]
[TimeControl "2700+10"]

1. e4 {[%emt 0:00:00]} c5 {[%emt 0:00:00]} 2. Nf3 {[%emt 0:00:17]} Nc6 {[%emt 0:00:00]} 3. d4 {[%emt 0:00:02]} cxd4 {[%emt 0:00:02]} 4. Nxd4 {[%emt 0:00:02]} Nf6 {[%emt 0:00:15]} 5. Nc3 {[%emt 0:00:03]} e5 {[%emt 0:00:13]} 6. Ndb5 {[%emt 0:00:11]} d6 {[%emt 0:00:29]} 7. Bg5 {[%emt 0:00:05]} a6 {[%emt 0:00:40]} 8. Bxf6 {[%emt 0:00:08]} gxf6 {[%emt 0:00:08]} 9. Na3 {[%emt 0:00:02]} b5 {[%emt 0:00:38]} 10. Nd5 {[%emt 0:00:02]} f5 {[%emt 0:00:29]} 11. c3 {[%emt 0:00:05]} Bg7 {[%emt 0:02:44]} 12. exf5 {[%emt 0:00:17]} Bxf5 {[%emt 0:00:47]} 13. Nc2 {[%emt 0:00:01]} O-O {[%emt 0:01:56]} 14. Nce3 {[%emt 0:00:03]} Be6 {[%emt 0:00:07]} 15. g3 {[%emt 0:01:21]} f5 {[%emt 0:03:12]} 16. Bg2 {[%emt 0:00:42]} Rc8 {[%emt 0:02:37]} 17. f4 {[%emt 0:01:40]} e4 {[%emt 0:03:04]} 18. O-O {[%emt 0:02:40]} b4 {[%emt 0:05:13]} 19. g4 {[%emt 0:01:44]} bxc3 {[%emt 0:03:49]} 20. bxc3 {[%emt 0:02:48]} Ne7 {[%emt 0:02:06]} 21. gxf5 {[%emt 0:01:18]} Nxf5 {[%emt 0:05:11]} 22. Nxf5 {[%emt 0:05:39]} Bxf5 {[%emt 0:00:11]} 23. Qd2 {[%emt 0:01:24]} Kh8 {[%emt 0:02:43]} 24. Rad1 {[%emt 0:05:49]} Qa5 {[%emt 0:03:46]} 25. Ne7 {[%emt 0:06:41]} Qc5+ {[%emt 0:00:15]} 26. Kh1 {[%emt 0:00:41]} e3 {[%emt 0:03:32]} 27. Qe2 {[%emt 0:02:45]} Be6 {[%emt 0:01:09]} 28. Nxc8 {[%emt 0:01:11]} Bc4 {[%emt 0:00:03]} 29. Rd3 {[%emt 0:00:13]} Bxd3 {[%emt 0:00:31]} 30. Qxd3 {[%emt 0:00:02]} Rxc8 {[%emt 0:00:03]} 31. Re1 {[%emt 0:01:45]} Qxc3 {[%emt 0:00:19]} 32. Qxc3 {[%emt 0:01:14]} Rxc3 {[%emt 0:00:03]} 33. Bf3 {[%emt 0:00:05]} Bd4 {[%emt 0:00:48]} 34. Kg2 {[%emt 0:00:28]} Kg7 {[%emt 0:00:19]} 35. Re2 {[%emt 0:00:51]} Kf6 {[%emt 0:00:05]} 36. Be4 {[%emt 0:00:11]} h6 {[%emt 0:00:05]} 37. Kf3 {[%emt 0:00:30]} Rc7 {[%emt 0:00:38]} 38. Rc2 {[%emt 0:00:14]} Rxc2 {[%emt 0:00:17]} 1/2-1/2

[Event "Lidkoping Open 2019"]
[Site "Lidkoping"]
[Date "2019.08.25"]
[Round "7.16"]
[White "Dyrnes, Jussi"]
[Black "Johansson, Stefan"]
[Result "0-1"]
[ECO "A40"]
[WhiteElo "1779"]
[BlackElo "2016"]
[Annotator "NA"]
[PlyCount "90"]
[EventDate "2019.08.19"]
[EventType "swiss"]
[EventCountry "SWE"]
[SourceTitle "playchess.com"]
[Source "ChessBase"]
[SourceQuality "1"]
[TimeControl "2700+10"]

1. d4 {[%emt 0:00:19]} e6 {[%emt 0:00:00]} 2. Bf4 {[%emt 0:00:17]} f5 {[%emt 0:00:00]} 3. h3 {[%emt 0:00:35]} Nf6 {[%emt 0:00:43]} 4. g4 {[%emt 0:01:24]} Nd5 {[%emt 0:01:32]} 5. Bd2 {[%emt 0:01:35]} Nc6 {[%emt 0:01:23]} 6. e3 {[%emt 0:01:00]} g6 {[%emt 0:01:46]} 7. Bc4 {[%emt 0:01:20]} Nb6 {[%emt 0:02:18]} 8. Bb3 {[%emt 0:00:36]} d5 {[%emt 0:00:07]} 9. gxf5 {[%emt 0:01:48]} exf5 {[%emt 0:00:01]} 10. Nc3 {[%emt 0:00:36]} Bg7 {[%emt 0:00:25]} 11. Nge2 {[%emt 0:01:28]} Be6 {[%emt 0:02:34]} 12. Nf4 {[%emt 0:00:12]} Bf7 {[%emt 0:00:01]} 13. Qf3 {[%emt 0:00:41]} Ne7 {[%emt 0:00:19]} 14. h4 {[%emt 0:01:55]} h6 {[%emt 0:01:02]} 15. O-O-O {[%emt 0:05:12]} Qd7 {[%emt 0:00:19]} 16. Nd3 {[%emt 0:00:18]} O-O-O {[%emt 0:00:44]} 17. Nc5 {[%emt 0:00:30]} Qe8 {[%emt 0:01:02]} 18. Qe2 {[%emt 0:01:48]} Kb8 {[%emt 0:00:47]} 19. a4 {[%emt 0:01:50]} c6 {[%emt 0:02:58]} 20. a5 {[%emt 0:05:09]} Nd7 {[%emt 0:01:35]} 21. N3a4 {[%emt 0:00:09]} Nxc5 {[%emt 0:01:08]} 22. Nxc5 {[%emt 0:00:03]} Nc8 {[%emt 0:00:30]} 23. f3 {[%emt 0:01:17]} Bxd4 {[%emt 0:01:43]} 24. Na4 {[%emt 0:04:50]} Bf6 {[%emt 0:00:22]} 25. Bb4 {[%emt 0:00:36]} Nd6 {[%emt 0:02:48]} 26. Bxd6+ {[%emt 0:02:59]} Rxd6 {[%emt 0:00:02]} 27. Qd2 {[%emt 0:02:17]} Rd8 {[%emt 0:00:27]} 28. Rde1 {[%emt 0:01:19]} Qe7 {[%emt 0:00:40]} 29. Kb1 {[%emt 0:01:39]} Rhe8 {[%emt 0:01:20]} 30. Qf2 {[%emt 0:00:37]} Qc7 {[%emt 0:01:59]} 31. Qd2 {[%emt 0:00:41]} c5 {[%emt 0:00:26]} 32. Nc3 {[%emt 0:02:02]} Qxa5 {[%emt 0:00:53]} 33. Qh2+ {[%emt 0:00:36]} Be5 {[%emt 0:00:44]} 34. f4 {[%emt 0:00:10]} Bxc3 {[%emt 0:00:08]} 35. bxc3 {[%emt 0:00:03]} Qxc3 {[%emt 0:00:01]} 36. Qe2 {[%emt 0:01:09]} c4 {[%emt 0:00:10]} 37. Ba2 {[%emt 0:00:05]} Rd6 {[%emt 0:00:15]} 38. Kc1 {[%emt 0:00:57]} Qa1+ {[%emt 0:01:59]} 39. Bb1 {[%emt 0:00:02]} c3 {[%emt 0:00:24]} 40. Qd3 {[%emt 0:00:20]} Rb6 {[%emt 0:00:13]} 41. Kd1 {[%emt 0:00:17]} Rxb1+ {[%emt 0:00:11]} 42. Ke2 {[%emt 0:00:01]} Rxe1+ {[%emt 0:00:01]} 43. Rxe1 {[%emt 0:00:01]} Qa6 {[%emt 0:00:02]} 44. Rb1 {[%emt 0:00:11]} Qxd3+ {[%emt 0:00:02]} 45. Kxd3 {[%emt 0:00:03]} a6 {[%emt 0:00:34]} 0-1

[Event "Lidkoping Open 2019"]
[Site "Lidkoping"]
[Date "2019.08.25"]
[Round "7.17"]
[White "Strom-Engdahl, Alexander"]
[Black "Beslagic, Smail"]
[Result "1/2-1/2"]
[ECO "A36"]
[WhiteElo "1858"]
[BlackElo "1853"]
[Annotator "NA"]
[PlyCount "34"]
[EventDate "2019.08.19"]
[EventType "swiss"]
[EventCountry "SWE"]
[SourceTitle "playchess.com"]
[Source "ChessBase"]
[SourceQuality "1"]
[TimeControl "2700+10"]

1. c4 {[%emt 0:00:05]} c5 {[%emt 0:01:08]} 2. Nc3 {[%emt 0:00:41]} Nc6 {[%emt 0:00:37]} 3. g3 {[%emt 0:00:42]} g6 {[%emt 0:00:30]} 4. Bg2 {[%emt 0:00:15]} Bg7 {[%emt 0:00:10]} 5. d3 {[%emt 0:00:22]} Nf6 {[%emt 0:00:31]} 6. a3 {[%emt 0:01:45]} O-O {[%emt 0:01:39]} 7. Rb1 {[%emt 0:00:13]} d6 {[%emt 0:03:50]} 8. e3 {[%emt 0:01:01]} Nd7 {[%emt 0:01:42]} 9. Nge2 {[%emt 0:00:19]} Rb8 {[%emt 0:00:13]} 10. b4 {[%emt 0:00:17]} e6 {[%emt 0:01:55]} 11. O-O {[%emt 0:02:12]} Ne7 {[%emt 0:01:00]} 12. d4 {[%emt 0:03:35]} cxd4 {[%emt 0:02:58]} 13. exd4 {[%emt 0:00:43]} a6 {[%emt 0:01:05]} 14. Bg5 {[%emt 0:07:17]} h6 {[%emt 0:01:18]} 15. Be3 {[%emt 0:01:37]} Qc7 {[%emt 0:06:05]} 16. Qd3 {[%emt 0:02:13]} b6 {[%emt 0:02:45]} 17. Rfc1 {[%emt 0:05:48]} Bb7 {[%emt 0:00:13]} 1/2-1/2

[Event "Lidkoping Open 2019"]
[Site "Lidkoping"]
[Date "2019.08.25"]
[Round "7.18"]
[White "Johansson, Eva"]
[Black "Nordlund, Keith"]
[Result "1/2-1/2"]
[ECO "A56"]
[WhiteElo "1869"]
[BlackElo "2013"]
[Annotator "NA"]
[PlyCount "29"]
[EventDate "2019.08.19"]
[EventType "swiss"]
[EventCountry "SWE"]
[SourceTitle "playchess.com"]
[Source "ChessBase"]
[SourceQuality "1"]
[TimeControl "2700+10"]

1. d4 {[%emt 0:00:00]} Nf6 {[%emt 0:00:00]} 2. c4 {[%emt 0:00:00]} c5 {[%emt 0:00:04]} 3. d5 {[%emt 0:00:12]} e5 {[%emt 0:00:39]} 4. Nc3 {[%emt 0:01:10]} d6 {[%emt 0:00:15]} 5. g3 {[%emt 0:00:57]} Be7 {[%emt 0:01:12]} 6. Bg2 {[%emt 0:00:03]} Nbd7 {[%emt 0:00:30]} 7. e4 {[%emt 0:00:39]} O-O {[%emt 0:01:06]} 8. Nge2 {[%emt 0:00:34]} a6 {[%emt 0:00:49]} 9. O-O {[%emt 0:00:48]} Ne8 {[%emt 0:00:23]} 10. f4 {[%emt 0:01:55]} g6 {[%emt 0:03:27]} 11. Be3 {[%emt 0:02:35]} Ng7 {[%emt 0:01:20]} 12. Qc2 {[%emt 0:03:04]} Rb8 {[%emt 0:00:36]} 13. a4 {[%emt 0:00:11]} b6 {[%emt 0:00:16]} 14. Ra3 {[%emt 0:01:43]} f6 {[%emt 0:00:38]} 15. f5 {[%emt 0:33:39]} 1/2-1/2

[Event "Lidkoping Open 2019"]
[Site "Lidkoping"]
[Date "2019.08.25"]
[Round "7.19"]
[White "Frisk, Anders"]
[Black "Svensson, Leif"]
[Result "0-1"]
[ECO "A11"]
[WhiteElo "1776"]
[BlackElo "2027"]
[Annotator "NA"]
[PlyCount "34"]
[EventDate "2019.08.19"]
[EventType "swiss"]
[EventCountry "SWE"]
[SourceTitle "playchess.com"]
[Source "ChessBase"]
[SourceQuality "1"]
[TimeControl "2700+10"]

1. c4 {[%emt 0:00:00]} c6 {[%emt 0:00:10]} 2. Nc3 {[%emt 0:00:00]} d5 {[%emt 0:00:04]} 3. e3 {[%emt 0:00:09]} e6 {[%emt 0:01:41]} 4. Nf3 {[%emt 0:00:20]} Nd7 {[%emt 0:00:22]} 5. Be2 {[%emt 0:01:30]} Bd6 {[%emt 0:00:27]} 6. Qc2 {[%emt 0:02:15]} Ngf6 {[%emt 0:00:18]} 7. O-O {[%emt 0:00:59]} O-O {[%emt 0:00:08]} 8. b3 {[%emt 0:01:33]} Re8 {[%emt 0:00:13]} 9. Bb2 {[%emt 0:01:59]} e5 {[%emt 0:05:17]} 10. cxd5 {[%emt 0:00:21]} Nxd5 {[%emt 0:02:05]} 11. Ne4 {[%emt 0:05:40]} Bc7 {[%emt 0:02:07]} 12. Neg5 {[%emt 0:03:20]} g6 {[%emt 0:01:10]} 13. h4 {[%emt 0:05:49]} N7f6 {[%emt 0:01:44]} 14. g3 {[%emt 0:04:17]} e4 {[%emt 0:02:19]} 15. Bxf6 {[%emt 0:03:21]} Nxf6 {[%emt 0:01:22]} 16. Qc4 {[%emt 0:02:29]} Qe7 {[%emt 0:01:17]} 17. Nxh7 {[%emt 0:06:54]} exf3 {[%emt 0:02:51]} 0-1